bitfinex/quotes_ETHUSD_20241223
["timestamp","ask_amount","ask_price","bid_price","bid_amount"]
[1734916435184,3.08985,3236.4,3235.7,0.55]
[1734916435389,3.08985,3236.4,3236.1,0.62264728]
[1734916435581,0.04674845,3236.3,3236.1,0.62264728]
[1734916435811,0.8277,3237.4,3236.1,0.62264728]
[1734916435999,0.04673603,3236.2,3236.1,0.62264728]
[1734916436213,3.08939,3236.9,3236.1,1.17264728]
[1734916436422,0.04673603,3236.2,3236.1,1.17264728]
[1734916436619,4.35347451,3237.3,3236.2,0.55]
[1734916437005,0.04700193,3237.2,3236.2,0.55]
[1734916437331,3.13615193,3237.2,3236.1,0.81663201]
[1734916437541,3.13615193,3237.2,3236.2,0.55]
[1734916438106,0.04700193,3237.2,3236.3,0.756]
[1734916438293,1.26447451,3237.9,3237.1,0.61083768]
[1734916438522,0.04578428,3237.8,3237.2,1.306]
[1734916438726,0.48477652,3238.1,3237.3,0.756]
[1734916438894,2.62798878,3238.4,3237.6,3.08866]
[1734916439096,1.26642701,3238.2,3237.9,0.55]
[1734916439514,0.03956542,3238.1,3237.9,0.55]
[1734916439728,0.03956542,3238.1,3238.0,0.62123175]
[1734916440038,1.26642701,3238.2,3238.0,0.62123175]
[1734916440334,3.0,3240.0,3238.1,0.55]
[1734916440490,8.03243375,3240.4,3238.1,0.55]
[1734916440491,3.08709,3239.3,3238.1,0.55]
[1734916440692,0.0404467,3239.2,3238.1,0.55]
[1734916440893,3.08728,3239.1,3238.1,0.55]
[1734916441213,0.04075413,3239.0,3238.1,0.55]
[1734916441554,3.087,3239.4,3238.1,0.55]
[1734916441693,0.25,3239.8,3237.8,0.756]
[1734916442035,3.08742,3239.0,3237.8,0.756]
[1734916442188,3.08754,3238.9,3237.8,0.756]
[1734916442393,0.04077853,3238.8,3237.8,0.756]
[1734916442738,0.7908,3239.1,3237.8,0.756]
[1734916443147,3.08746,3238.9,3237.8,0.756]
[1734916443314,0.04063089,3238.8,3237.8,0.756]
[1734916443515,0.04063089,3238.8,3237.3,0.7638]
[1734916443516,3.08852,3237.8,3237.3,0.7638]
[1734916443721,3.08797,3238.4,3237.3,0.7638]
[1734916443916,3.0,3238.5,3237.3,0.7638]
[1734916444118,3.08831,3238.1,3237.3,0.7638]
[1734916444335,0.04021789,3238.0,3237.3,1.36999364]
[1734916444498,3.08726,3239.2,3237.7,0.7947]
[1734916444704,3.71031856,3239.3,3237.8,0.55]
[1734916444705,3.12763435,3239.1,3237.8,0.55]
[1734916444931,3.08738,3239.0,3237.8,0.55]
[1734916445131,0.04032955,3238.9,3238.1,0.6250541]
[1734916445312,3.71031856,3239.3,3238.1,0.6250541]
[1734916445518,0.04036675,3239.2,3238.1,0.6250541]
[1734916445696,0.04036675,3239.2,3238.2,0.55]
[1734916445899,0.8328,3239.5,3238.3,0.7721]
[1734916446149,3.12739155,3239.4,3238.3,0.7721]
[1734916446344,3.08712,3239.3,3238.3,0.7721]
[1734916446545,0.04036675,3239.2,3238.3,0.7721]
[1734916447101,3.08708,3239.3,3238.3,0.7721]
[1734916447298,0.04024358,3239.1,3238.4,0.55]
[1734916447513,7.04088755,3239.9,3239.1,0.7805]
[1734916447713,0.04053344,3239.8,3239.1,0.7805]
[1734916447947,2.53605486,3240.0,3239.1,0.7805]
[1734916448130,0.04054584,3239.9,3239.1,0.7805]
[1734916448446,3.0868,3239.6,3238.5,0.55]
[1734916448746,0.7698,3239.8,3238.5,0.55]
[1734916448747,0.04071768,3239.5,3238.5,0.55]
[1734916448929,3.0869,3239.5,3238.5,0.55]
[1734916449132,0.04070528,3239.4,3238.5,0.55]
[1734916449645,0.04070528,3239.4,3238.8,0.62055766]
[1734916449808,0.04070528,3239.4,3238.9,0.7622]
[1734916450010,4.35340026,3239.9,3238.9,0.7622]
[1734916450236,0.04114808,3239.3,3238.9,0.7622]
[1734916450560,1.26686026,3239.9,3238.8,0.62055766]
[1734916450705,0.7634,3239.5,3238.8,0.62055766]
[1734916450909,0.7634,3239.5,3238.5,0.7674]
[1734916451137,3.08734,3239.1,3238.5,0.7674]
[1734916451457,3.08785,3238.5,3238.0,0.7674]
[1734916451663,3.08785,3238.5,3237.0,8.98]
[1734916451664,3.08798,3238.4,3237.6,0.7674]
[1734916451880,0.04119635,3238.4,3237.6,0.7674]
[1734916452078,0.04119635,3238.4,3237.8,0.61251935]
[1734916452230,3.08755,3238.9,3237.8,0.61251935]
[1734916452430,0.04118394,3238.3,3237.9,0.7943]
[1734916452667,3.08737,3239.0,3237.9,0.7943]
[1734916452828,1.26686026,3239.1,3237.9,0.7943]
[1734916453036,0.04125837,3238.9,3237.9,0.7943]
[1734916453270,0.04084021,3239.0,3237.9,0.7943]
[1734916453479,1.26686026,3239.1,3237.9,0.7943]
[1734916453480,0.0408154,3238.8,3237.9,0.7943]
[1734916453776,0.040803,3238.7,3237.9,0.7943]
[1734916454082,3.08721,3239.2,3237.9,0.7943]
[1734916454260,0.04079059,3238.6,3237.9,0.7943]
[1734916454471,1.90155612,3239.4,3237.9,0.7943]
[1734916454472,1.26686026,3239.4,3238.3,3.08799]
[1734916454776,0.04087741,3239.3,3238.6,0.55]
[1734916455748,3.08676,3239.7,3238.6,0.55]
[1734916455945,1.26686026,3240.1,3238.6,0.55]
[1734916456175,1.26686026,3240.1,3238.7,0.7943]
[1734916456176,3.08634,3240.1,3238.7,0.7943]
[1734916456346,0.04130856,3239.9,3238.8,0.55]
[1734916456547,3.12782856,3239.9,3238.8,0.55]
[1734916457052,3.08661,3239.8,3238.8,0.55]
[1734916457262,0.04130856,3239.9,3238.8,0.55]
[1734916457467,0.04128377,3239.7,3238.8,0.55]
[1734916457788,0.04127137,3239.6,3238.8,0.55]
[1734916457987,5.07836026,3240.4,3239.1,0.63165509]
[1734916458136,3.08688,3239.6,3239.1,0.63165509]
[1734916458333,0.04148035,3239.5,3239.1,0.63165509]
[1734916458582,3.0867,3239.7,3239.1,0.63165509]
[1734916458876,3.12829275,3239.6,3238.7,0.7943]
[1734916459081,0.86999275,3239.6,3238.5,0.61681444]
[1734916459384,3.08701,3239.4,3238.5,0.61681444]
[1734916459585,3.08722,3239.2,3238.5,0.61681444]
[1734916459767,0.04138771,3239.1,3238.5,0.61681444]
[1734916459937,0.8285,3239.6,3238.5,0.61681444]
[1734916460140,0.04143731,3239.5,3238.6,0.8083]
[1734916460479,3.7902,3240.0,3238.6,0.8083]
[1734916460480,3.08711,3239.3,3238.6,0.8083]
[1734916460657,0.04125273,3239.4,3238.6,0.8083]
[1734916460856,0.04122793,3239.2,3238.6,0.8083]
[1734916461071,0.04124033,3239.3,3238.6,0.8083]
[1734916461270,0.04121552,3239.1,3238.6,0.8083]
[1734916461474,0.04122793,3239.2,3238.6,0.8083]
[1734916461678,0.04117852,3239.0,3238.7,0.55]
[1734916461842,0.04130777,3239.1,3238.8,0.798]
[1734916462041,1.26686026,3240.0,3239.2,0.55]
[1734916462290,1.26686026,3240.0,3239.6,0.798]
[1734916462446,0.0415157,3239.9,3239.7,0.55]
[1734916462783,0.04149478,3239.8,3239.7,0.55]
[1734916463105,1.26686026,3240.2,3239.9,0.55]
[1734916463891,3.08558,3240.9,3239.9,0.55]
[1734916464244,3.08566,3240.8,3239.9,0.55]
[1734916465289,3.08566,3240.8,3239.8,0.8317]
[1734916465290,3.0,3241.2,3239.8,0.8317]
[1734916465489,3.0,3240.8,3238.8,0.7788]
[1734916465697,3.08594,3240.5,3238.8,1.77443114]
[1734916465996,3.08636,3240.1,3238.8,0.7788]
[1734916466286,3.0867,3239.7,3239.1,0.62166714]
[1734916466486,3.08613,3240.3,3238.8,0.7788]
[1734916466690,3.08668,3239.8,3238.8,0.7788]
[1734916466918,0.7623,3240.7,3239.1,0.7743]
[1734916467195,1.26686026,3240.8,3239.5,0.7743]
[1734916467402,1.26686026,3240.8,3239.7,0.7743]
[1734916467793,1.26686026,3240.7,3240.1,0.7743]
[1734916468508,1.26686026,3240.7,3238.6,3.25]
[1734916468509,5.02436026,3240.7,3239.1,0.7835]
[1734916468808,3.08623,3240.2,3239.1,0.7835]
[1734916469009,3.7575,3240.7,3239.1,0.7835]
[1734916469161,3.08663,3239.8,3239.1,0.7835]
[1734916469367,3.7575,3240.7,3239.4,0.6154331]
[1734916469773,3.08646,3240.0,3239.4,0.6154331]
[1734916469978,3.08634,3240.1,3239.4,0.6154331]
[1734916470175,3.08639,3240.1,3239.4,0.6154331]
[1734916470381,3.08644,3240.0,3239.4,0.6154331]
[1734916471015,3.0865,3240.0,3239.4,0.6154331]
[1734916472670,3.08653,3239.9,3239.4,0.6154331]
[1734916473121,3.08611,3240.4,3239.4,0.6154331]
[1734916473315,1.26686026,3240.8,3239.6,0.55]
[1734916473522,1.26686026,3240.8,3239.7,0.8035]
[1734916473671,3.08597,3240.5,3239.7,0.8035]
[1734916473876,3.08604,3240.4,3239.7,0.8035]
[1734916474385,3.08616,3240.3,3239.7,0.8035]
[1734916474582,0.8173,3241.1,3239.5,0.55]
[1734916474782,3.08595,3240.5,3239.7,0.55]
[1734916475014,1.26686026,3241.2,3239.9,0.55]
[1734916475213,3.08556,3240.9,3239.9,0.55]
[1734916476019,3.08545,3241.1,3240.1,0.6048731]
[1734916476314,3.08572,3240.8,3240.1,0.6048731]
[1734916476518,3.08579,3240.7,3240.1,0.6048731]
[1734916476928,1.26686026,3241.4,3240.2,0.8035]
[1734916477079,1.26686026,3241.4,3240.2,1.3535]
[1734916477080,4.35198026,3241.4,3240.2,1.3535]
[1734916477278,1.26686026,3241.4,3240.4,0.8035]
[1734916477474,1.26686026,3241.4,3240.7,3.55]
[1734916477703,3.16930755,3241.8,3241.2,0.55]
[1734916477976,0.94421028,3241.7,3241.4,0.55]
[1734916478230,0.94421028,3241.7,3241.4,0.7659]
[1734916478520,1.55831783,3241.8,3241.7,4.4007]
[1734916478821,2.53976573,3242.1,3242.0,3.63451]
[1734916479116,0.7946,3243.9,3242.0,3.63451]
[1734916479117,3.08299,3243.6,3242.2,0.7542]
[1734916479275,2.53976573,3243.7,3242.2,0.7542]
[1734916479481,3.08323,3243.4,3242.2,0.7542]
[1734916479924,3.08323,3243.4,3242.3,0.55]
[1734916479925,3.08319,3243.4,3242.3,0.55]
[1734916480424,3.08319,3243.4,3242.5,0.61544261]
[1734916481080,5.62270573,3243.7,3242.6,0.7675]
[1734916481281,2.53976573,3243.7,3242.7,0.55]
[1734916481486,3.08267,3244.0,3242.8,0.7675]
[1734916481785,0.7919,3244.3,3242.8,0.7675]
[1734916482197,3.08323,3243.4,3242.8,0.7675]
[1734916482535,3.0839,3242.7,3241.8,0.8272]
[1734916482833,3.08357,3243.0,3241.8,0.8272]
[1734916483030,0.8068,3244.0,3242.1,0.8272]
[1734916483199,3.08309,3243.5,3242.3,0.8272]
[1734916483382,0.8068,3244.0,3242.3,0.8272]
[1734916483584,3.08327,3243.4,3242.3,0.8272]
[1734916483833,3.08329,3243.3,3242.3,0.8272]
[1734916484542,3.08307,3243.6,3242.7,0.7712]
[1734916484687,3.8068,3244.0,3242.7,0.7712]
[1734916485104,3.08339,3243.2,3241.9,0.605127]
[1734916485306,3.08369,3242.9,3241.9,0.605127]
[1734916485529,0.7832,3243.5,3242.0,0.7712]
[1734916485530,3.08347,3243.1,3242.0,0.7712]
[1734916485946,3.08326,3243.4,3242.0,0.7712]
[1734916486307,3.08326,3243.4,3242.2,1.3214]
[1734916486606,3.08283,3243.8,3242.5,0.7714]
[1734916486917,3.08297,3243.7,3242.5,0.7714]
[1734916487121,0.7748,3244.3,3242.5,0.7714]
[1734916487122,3.08311,3243.5,3242.5,0.7714]
[1734916487524,3.08337,3243.2,3242.5,0.7714]
[1734916487946,3.51753632,3244.1,3242.6,0.55]
[1734916488312,3.08303,3243.6,3242.6,0.55]
[1734916489353,3.51753632,3244.1,3242.6,0.55]
[1734916489583,3.08309,3243.5,3242.6,0.55]
[1734916490323,3.08309,3243.5,3242.5,0.7714]
[1734916490639,3.08364,3243.0,3242.5,0.7714]
[1734916490947,3.08374,3242.9,3242.5,0.7714]
[1734916491151,3.0,3243.2,3242.1,0.7684]
[1734916491357,0.7605,3242.9,3240.8,3.51753632]
[1734916491564,3.08394,3242.6,3241.5,0.60504087]
[1734916491723,4.27803632,3242.9,3241.6,0.7684]
[1734916491724,3.08365,3242.9,3241.6,0.7684]
[1734916492053,3.08404,3242.5,3241.6,0.7684]
[1734916492258,3.0,3242.8,3241.6,0.7684]
[1734916492416,6.08365,3243.0,3241.6,0.7684]
[1734916492611,3.0,3243.3,3241.6,1.40011478]
[1734916492815,3.51753632,3243.4,3241.6,1.40011478]
[1734916492816,3.08416,3242.4,3241.6,0.7684]
[1734916493121,3.08443,3242.1,3241.6,0.7684]
[1734916493650,0.04199889,3242.0,3241.6,0.7684]
[1734916494010,3.91627,3242.1,3240.5,0.7781]
[1734916494212,3.08584,3240.6,3240.5,0.7781]
[1734916494410,0.04148619,3240.6,3240.1,0.7504]
[1734916494744,3.08608,3240.4,3240.1,0.7504]
[1734916495060,3.86185,3241.3,3240.1,0.7504]
[1734916495061,0.04088816,3240.3,3240.1,0.7504]
[1734916495225,0.04088816,3240.3,3239.3,0.62232951]
[1734916495415,3.08584,3240.6,3239.4,0.7504]
[1734916495615,0.04098519,3240.5,3239.4,0.7504]
[1734916495854,3.08625,3240.2,3239.4,0.7504]
[1734916496213,0.04092287,3240.1,3239.4,0.7504]
[1734916496445,3.08623,3240.2,3239.4,0.7504]
[1734916496610,3.87795,3240.8,3239.4,0.7504]
[1734916496611,0.03936814,3240.0,3239.4,0.7504]
[1734916496812,3.08618,3240.3,3239.4,0.7504]
[1734916497022,0.03939292,3240.2,3239.4,0.7504]
[1734916499168,3.08683,3239.6,3239.4,0.7504]
[1734916499372,3.0,3240.1,3238.3,0.7854]
[1734916499521,3.08729,3239.1,3238.3,0.7854]
[1734916499730,3.08711,3239.3,3238.3,1.39716252]
[1734916499960,0.03729483,3239.0,3238.3,1.39716252]
[1734916500166,0.03732814,3239.2,3238.3,1.39716252]
[1734916500468,3.08669,3239.8,3238.3,1.39716252]
[1734916500673,0.03731575,3239.1,3238.3,1.39716252]
[1734916500899,3.08716,3239.3,3238.3,1.39716252]
[1734916501168,0.7923,3240.0,3238.4,0.7903]
[1734916501169,3.08688,3239.6,3238.4,0.7903]
[1734916501470,0.7923,3240.0,3238.4,0.7903]
[1734916501769,3.12415541,3239.5,3238.4,0.7903]
[1734916502072,0.7923,3240.0,3236.7,0.25]
[1734916502073,3.08817,3238.2,3236.9,8.98]
[1734916502370,4.30813632,3238.8,3237.1,0.7758]
[1734916502584,0.03656742,3238.1,3237.5,0.7758]
[1734916502729,3.08757,3238.8,3237.5,0.7758]
[1734916502925,3.0,3239.1,3237.5,0.7758]
[1734916503123,3.088,3238.4,3237.5,1.81275399]
[1734916503359,3.088,3238.4,3237.5,0.7758]
[1734916503631,3.08813,3238.2,3237.5,0.7758]
[1734916503825,0.03656206,3238.1,3237.5,0.7758]
[1734916504029,0.03656206,3238.1,3236.0,6.60767632]
[1734916504030,3.51753632,3238.0,3236.2,0.7715]
[1734916504222,0.7556,3237.5,3236.2,0.7715]
[1734916504424,3.51753632,3237.2,3236.2,0.7715]
[1734916504707,0.0365194,3237.1,3236.2,0.7715]
[1734916504930,3.0893,3237.0,3236.2,0.7715]
[1734916505340,0.03649883,3236.9,3236.2,0.7715]
[1734916505640,3.08923,3237.1,3236.2,0.7715]
[1734916505851,3.08923,3237.1,3235.1,0.154265]
[1734916505852,3.08989,3236.4,3235.7,0.7756]
[1734916506221,3.51753632,3236.8,3235.2,0.61608574]
[1734916506222,3.51753632,3236.0,3235.2,0.61608574]
[1734916506421,0.03633024,3235.9,3234.4,0.7756]
[1734916506662,3.12667024,3235.9,3234.4,0.7756]
[1734916506872,3.09072,3235.5,3234.4,0.7756]
[1734916507244,0.03425051,3235.4,3234.4,0.7756]
[1734916507573,0.03425051,3235.4,3234.0,0.15994592]
[1734916507574,0.03425051,3235.4,3235.0,0.64917761]
[1734916508077,0.03423808,3235.3,3235.0,0.64917761]
[1734916508493,3.09038,3235.9,3235.0,0.64917761]
[1734916508629,0.03422565,3235.2,3235.0,0.64917761]
[1734916508830,0.7911,3235.1,3235.0,0.64917761]
[1734916509153,0.82494092,3235.1,3235.0,0.64917761]
[1734916510171,0.82494092,3235.1,3235.0,0.03]
[1734916510628,0.03384092,3235.1,3235.0,0.03]
[1734916510830,3.09031,3236.0,3235.0,0.03]
[1734916510831,0.7911,3236.1,3235.0,0.03]
[1734916511152,3.09053,3235.7,3235.0,0.65406276]
[1734916511349,3.55118572,3236.0,3235.0,0.65406276]
[1734916511528,0.7911,3236.1,3235.0,0.65406276]
[1734916511529,0.03359967,3235.6,3235.1,0.762]
[1734916511877,3.88126,3236.1,3235.1,35.762]
[1734916512173,3.88126,3236.1,3235.1,38.35829241]
[1734916512332,0.03390243,3236.0,3235.1,38.35829241]
[1734916512967,3.12415243,3236.0,3235.1,2.59629241]
[1734916513152,3.12415243,3236.0,3235.0,0.03]
[1734916513360,0.03390243,3236.0,3235.0,0.58]
[1734916513859,3.09063,3235.6,3235.0,0.03]
[1734916514230,0.0339535,3235.5,3235.0,0.03]
[1734916514572,3.09037,3235.9,3235.0,0.03]
[1734916514798,0.03394107,3235.4,3235.0,0.03]
[1734916515071,0.03392864,3235.3,3235.0,0.03]
[1734916515435,3.51753632,3236.0,3235.0,0.03]
[1734916515628,0.03400748,3235.9,3235.0,0.03]
[1734916515835,3.0906,3235.7,3235.0,0.03]
[1734916516156,0.0339702,3235.6,3235.0,0.03]
[1734916516344,3.1246002,3235.6,3235.0,0.03]
[1734916516541,0.0339702,3235.6,3235.0,0.03]
[1734916516775,3.09072,3235.5,3235.0,0.03]
[1734916516983,3.55150652,3235.6,3235.0,0.03]
[1734916517186,3.09103,3235.2,3235.0,0.03]
[1734916517478,0.03362465,3235.1,3235.0,0.03]
[1734916518469,0.25,3237.4,3235.0,0.03]
[1734916518470,0.7705,3236.3,3235.0,0.803]
[1734916518784,3.09033,3235.9,3235.0,0.64597028]
[1734916518942,3.09057,3235.7,3235.0,0.64597028]
[1734916519147,3.51753632,3235.6,3235.0,0.64597028]
[1734916519358,0.03356955,3235.6,3235.0,0.64597028]
[1734916519672,3.12419955,3235.6,3235.0,0.64597028]
[1734916519845,0.03356955,3235.6,3235.0,0.03]
[1734916520044,3.09039,3235.9,3235.0,0.03]
[1734916520229,0.7705,3236.3,3235.1,0.755]
[1734916520230,0.03373638,3235.8,3235.1,0.755]
[1734916520558,0.7705,3236.3,3235.1,1.25909404]
[1734916520936,0.03382881,3236.2,3235.1,1.25909404]
[1734916521137,0.03382881,3236.2,3235.1,0.755]
[1734916521874,0.8315,3236.1,3235.0,0.03]
[1734916522080,3.09103,3235.2,3235.0,0.03]
[1734916522567,0.0336814,3235.1,3235.0,0.03]
[1734916522984,3.091,3235.2,3235.0,0.03]
[1734916523142,0.0336814,3235.1,3235.0,0.03]
[1734916523658,3.0,3235.6,3235.0,0.03]
[1734916523865,0.0336814,3235.1,3235.0,0.03]
[1734916524168,3.8315,3235.7,3235.0,0.03]
[1734916524367,0.0336814,3235.1,3235.0,0.8594]
[1734916524682,3.09017,3236.1,3235.0,0.8594]
[1734916524905,0.03049517,3235.1,3235.0,0.8594]
[1734916525076,0.796,3236.7,3235.0,3.95059]
[1734916525262,0.796,3236.7,3235.0,1.48607904]
[1734916525463,3.0901,3236.2,3235.0,1.48607904]
[1734916525666,3.08986,3236.4,3235.0,1.48607904]
[1734916525891,0.03064082,3236.1,3235.0,1.48607904]
[1734916526206,0.796,3236.7,3235.0,1.48607904]
[1734916526207,0.03069344,3236.3,3235.0,1.48607904]
[1734916526408,3.08953,3236.8,3235.0,0.8594]
[1734916526409,3.09053,3235.7,3235.0,0.8594]
[1734916526556,3.09013,3236.1,3235.0,0.8594]
[1734916526756,0.03054237,3235.6,3235.0,0.8594]
[1734916526956,3.08987,3236.4,3235.0,0.8594]
[1734916527275,3.09014,3236.1,3235.0,0.8594]
[1734916527777,0.03068297,3236.0,3235.0,0.8594]
[1734916528101,0.7521,3236.5,3235.0,0.8594]
[1734916528309,0.03067054,3235.9,3235.0,0.8594]
[1734916528603,3.09054,3235.7,3235.0,0.8594]
[1734916528979,0.03063325,3235.6,3235.0,0.8594]
[1734916529478,3.09033,3235.9,3235.0,0.8594]
[1734916529806,0.03062082,3235.5,3235.0,0.8594]
[1734916530015,3.7521,3236.5,3235.0,0.8594]
[1734916530016,3.08985,3236.4,3235.0,0.8594]
[1734916530227,3.09034,3235.9,3235.0,0.8594]
[1734916530521,0.03065811,3235.8,3235.0,0.8594]
[1734916530877,0.7521,3236.5,3235.1,0.45639519]
[1734916531195,0.03064568,3235.7,3235.1,0.45639519]
[1734916531381,3.92032,3236.9,3235.2,0.7844]
[1734916531585,3.0895,3236.8,3235.2,0.7844]
[1734916531921,0.07209199,3236.8,3235.6,0.63018682]
[1734916532124,3.08991,3236.4,3235.2,0.7844]
[1734916532473,0.07223016,3236.3,3235.2,0.7844]
[1734916532676,3.08949,3236.8,3235.2,3.87536]
[1734916532991,0.8309,3236.9,3235.5,0.63068191]
[1734916532992,0.07237331,3236.2,3235.5,0.63068191]
[1734916533202,3.08965,3236.7,3235.2,0.7844]
[1734916533402,0.07236216,3236.1,3235.3,0.61768582]
[1734916533706,3.08983,3236.5,3235.3,0.61768582]
[1734916533873,0.07263487,3236.0,3235.3,0.61768582]
[1734916534073,3.0,3236.7,3235.3,0.61768582]
[1734916534074,3.0899,3236.4,3235.3,0.61768582]
[1734916534274,0.8309,3236.9,3235.3,0.61768582]
[1734916534275,0.07262372,3235.9,3235.3,0.61768582]
[1734916534582,3.08986,3236.4,3235.3,0.61768582]
[1734916535014,0.07266832,3236.3,3235.3,0.61768582]
[1734916535330,3.16261832,3236.3,3235.3,0.61768582]
[1734916535693,0.07266832,3236.3,3235.3,0.61768582]
[1734916535939,3.09051,3235.8,3235.0,0.03]
[1734916536436,3.16311039,3235.7,3235.0,0.03]
[1734916536725,3.09095,3235.3,3235.0,0.03]
[1734916536929,3.09071,3235.5,3235.0,0.03]
[1734916537135,3.09109,3235.1,3235.0,0.03]
[1734916537446,6.91919,3235.1,3235.0,0.03]
[1734916537733,6.99119,3235.1,3235.0,0.03]
[1734916538030,0.072,3235.1,3235.0,0.03]
[1734916538536,3.07098329,3235.1,3235.0,0.03]
[1734916538755,0.07098329,3235.1,3235.0,0.03]
[1734916539050,3.16207329,3235.1,3235.0,0.03]
[1734916540149,0.07098329,3235.1,3235.0,0.03]
[1734916540524,1.2592652,3235.7,3235.0,0.03]
[1734916540725,0.07104335,3235.1,3235.0,0.03]
[1734916540923,3.09085,3235.4,3235.0,0.03]
[1734916541160,3.16208395,3235.1,3235.0,0.03]
[1734916541343,3.09109,3235.1,3235.0,0.03]
[1734916541651,3.16202261,3235.1,3235.0,0.03]
[1734916541811,0.07093261,3235.1,3235.0,0.03]
[1734916542220,3.16202261,3235.1,3235.0,0.03]
[1734916542650,6.16202261,3235.1,3235.0,0.03]
[1734916542859,3.16202261,3235.1,3235.0,0.03]
[1734916544120,0.07093261,3235.1,3235.0,0.03]
[1734916544418,0.7521,3235.6,3235.0,0.03]
[1734916544616,3.09073,3235.5,3235.0,0.03]
[1734916544829,3.0,3235.4,3235.0,0.03]
[1734916545065,0.07092095,3235.4,3235.1,0.7757]
[1734916545416,1.2592652,3235.7,3235.1,0.7757]
[1734916545417,0.07092704,3235.3,3235.1,0.7757]
[1734916545641,0.07092704,3235.3,3235.1,1.39639456]
[1734916545845,0.07091781,3235.2,3235.0,0.03]
[1734916546151,1.88977691,3235.7,3235.6,3.09061]
[1734916546152,1.47057512,3235.7,3235.6,3.09061]
[1734916546363,1.47057512,3235.7,3235.6,1.117461]
[1734916546527,1.47057512,3235.7,3235.6,0.8084]
[1734916546729,1.26311391,3236.1,3235.6,0.8084]
[1734916547551,1.26311391,3236.1,3235.6,1.43739195]
[1734916547928,1.26311391,3236.1,3235.6,0.8084]
[1734916548315,3.08969,3236.6,3235.6,0.8084]
[1734916548816,3.09023,3236.0,3235.5,0.62143238]
[1734916549143,3.09033,3235.9,3235.5,0.62143238]
[1734916549646,3.09033,3235.9,3235.2,0.7671]
[1734916549842,0.7981,3236.0,3235.2,0.7671]
[1734916550361,3.0,3236.3,3235.2,0.7671]
[1734916551019,2.51970254,3236.2,3235.2,0.7671]
[1734916551450,2.51970254,3236.2,3235.5,0.62997143]
[1734916551967,2.51970254,3236.2,3235.6,0.7704]
[1734916552160,2.51970254,3236.5,3235.6,0.7704]
[1734916553122,2.51970254,3236.8,3235.6,0.7704]
[1734916553460,3.08967,3236.6,3235.6,0.7704]
[1734916553841,0.06778708,3236.5,3235.6,0.7704]
[1734916554337,3.09035,3235.9,3235.2,0.7704]
[1734916554675,3.0,3236.1,3235.2,0.7704]
[1734916554874,0.86971043,3236.4,3235.2,0.7704]
[1734916554875,3.0,3236.3,3235.2,0.7704]
[1734916555166,0.06785857,3236.2,3235.2,0.7704]
[1734916555341,5.51970254,3236.1,3235.2,0.7704]
[1734916555667,2.58754997,3236.1,3235.2,1.37548164]
[1734916556380,2.58754997,3236.1,3235.3,0.7739]
[1734916556552,1.97213952,3236.1,3235.3,0.7739]
[1734916557264,1.97213952,3236.1,3235.4,0.7739]
[1734916557776,0.06784743,3236.1,3235.4,0.7739]
[1734916557979,4.35965876,3236.3,3235.4,0.7739]
[1734916558152,0.06776668,3236.0,3235.4,0.7739]
[1734916558354,4.35965876,3236.3,3235.4,0.7739]
[1734916558556,0.06775553,3235.9,3235.4,0.7739]
[1734916558753,1.26964876,3236.2,3235.4,0.7739]
[1734916558975,0.06786161,3235.8,3235.4,0.7739]
[1734916559282,1.26964876,3236.2,3235.4,0.7739]
[1734916559871,0.06789506,3236.1,3235.4,0.7739]
[1734916560446,3.15805506,3236.1,3235.4,0.7739]
[1734916560750,0.06789506,3236.1,3235.4,0.7739]
[1734916561302,0.06789506,3236.1,3235.1,8.98]
[1734916561600,0.06789506,3236.1,3235.2,1.7265]
[1734916561766,3.09033,3235.9,3235.2,0.8255]
[1734916561966,0.82789506,3236.1,3235.0,0.03]
[1734916561967,3.09052,3235.7,3235.0,0.03]
[1734916562204,3.09066,3235.6,3235.0,0.03]
[1734916562384,3.15833334,3235.6,3235.0,0.03]
[1734916562702,3.0909,3235.3,3235.1,0.62540232]
[1734916562910,0.06764365,3235.5,3235.1,0.62540232]
[1734916563081,0.06761019,3235.2,3235.1,0.62540232]
[1734916563251,3.0907,3235.6,3235.0,0.03]
[1734916563446,1.26964876,3235.4,3235.0,0.63856647]
[1734916563646,0.06762134,3235.3,3235.1,0.7853]
[1734916564390,0.06762134,3235.3,3235.0,0.03]
[1734916565035,3.09109,3235.1,3235.0,0.03]
[1734916565153,0.06762134,3235.3,3235.0,0.03]
[1734916565154,3.15852134,3235.3,3235.0,0.03]
[1734916565349,6.1583496,3235.1,3235.0,0.03]
[1734916565597,6.89209,3235.1,3235.0,0.03]
[1734916565798,6.95932743,3235.1,3235.0,0.03]
[1734916566401,0.86823743,3235.1,3235.0,0.03]
[1734916566573,6.38793997,3235.1,3235.0,0.03]
[1734916566896,9.47902997,3235.1,3235.0,0.03]
[1734916567798,0.06723743,3235.1,3235.0,0.03]
[1734916569296,0.06629277,3235.1,3235.0,0.03]
[1734916569960,1.27018957,3235.4,3235.0,0.03]
[1734916570190,0.06658912,3235.1,3235.0,0.8151]
[1734916570387,1.27018957,3235.4,3235.0,0.8151]
[1734916570559,0.06650886,3235.1,3235.0,0.8151]
[1734916570756,1.27018957,3235.5,3235.0,1.3651]
[1734916570957,1.27018957,3235.5,3235.0,0.8151]
[1734916570958,0.06650886,3235.1,3235.0,0.8151]
[1734916571207,1.27018957,3235.5,3235.0,0.8151]
[1734916571501,0.06685719,3235.4,3235.0,0.8151]
[1734916571905,0.06685719,3235.4,3235.1,0.55]
[1734916572199,1.27018957,3236.2,3235.1,0.55]
[1734916572404,0.06706827,3235.3,3235.1,0.74888383]
[1734916572609,1.27018957,3236.2,3235.1,0.74888383]
[1734916572816,1.27018957,3236.2,3236.0,0.55]
[1734916572994,1.27018957,3236.2,3236.1,1.3024]